fUSD/lending_fUSD_20250109
["ID","MTS","AMOUNT","RATE_DAILY","PERIOD"]
[348215041,1736394654647,-500.0,0.00010821,2]
[348215043,1736394654656,-500.0,0.00010821,2]
[348215045,1736394654666,-500.0,0.00010821,2]
[348215047,1736394654676,-500.0,0.00010821,2]
[348215049,1736394654686,-500.0,0.00010821,2]
[348215051,1736394654696,-975.44,0.00010821,2]
[348215053,1736394654706,-500.0,0.00010821,2]
[348215055,1736394654716,-544.83375771,0.00010821,2]
[348215057,1736394654726,-1584.89,0.00010821,2]
[348215058,1736394654735,-500.0,0.00010821,2]
[348215060,1736394654745,-500.0,0.00010821,2]
[348215061,1736394654755,-698.71,0.00010821,2]
[348215062,1736394654765,-500.0,0.00010821,2]
[348215063,1736394654775,-844.48,0.00010821,2]
[348215064,1736394654784,-540.78881139,0.00010831,2]
[348215066,1736394654794,-429.73662246,0.00010861,2]
[348215068,1736394654804,-150.884025,0.00010893,2]
[348215070,1736394654814,-155.242055,0.00010899,2]
[348215072,1736394654824,-165.74284264,0.000109,2]
[348215074,1736394654833,-150.0,0.00010915,2]
[348215076,1736394654843,-2015.0,0.0001092,2]
[348215078,1736394654853,-1267.0,0.0001092,2]
[348215079,1736394654862,-567.439,0.0001092,2]
[348215080,1736394654872,-635.207,0.0001092,2]
[348215081,1736394654882,-150.241,0.0001092,2]
[348215082,1736394654892,-1862.692,0.0001092,2]
[348215083,1736394654901,-920.717,0.0001092,2]
[348215084,1736394654911,-820.0,0.0001092,2]
[348215085,1736394654922,-1261.524,0.0001092,2]
[348215086,1736394654932,-3777.0,0.0001092,2]
[348215087,1736394654942,-538.091,0.0001092,2]
[348215088,1736394654951,-3977.0,0.0001092,2]
[348215089,1736394654961,-150.0,0.0001092,2]
[348215090,1736394654971,-229.0,0.0001092,2]
[348215091,1736394654981,-1270.947,0.0001092,2]
[348215092,1736394654991,-168.0,0.0001092,2]
[348215093,1736394655000,-200.0,0.0001092,2]
[348215094,1736394655011,-150.0,0.0001092,2]
[348215095,1736394655021,-2879.88645603,0.0001092,2]
[348215096,1736394655418,-3089.9999995,0.0001092,2]
[348215097,1736395029719,874.31,8.219e-05,2]
[348215104,1736395056298,1500.0,8.307e-05,2]
[348215105,1736395056812,1462.69327492,7.111e-05,2]
[348215106,1736395116503,1500.0,8.155e-05,2]
[348215107,1736395184608,305.02429116,6.699e-05,2]
[348215108,1736395256882,150.0,8.459e-05,2]
[348215109,1736395257703,150.0,8.481e-05,2]
[348215110,1736395257899,150.0,8.326e-05,2]
[348215111,1736395258123,150.0,8.437e-05,2]
[348215113,1736395437081,150.0,7.809e-05,2]
[348215117,1736395556910,150.0,7.63e-05,2]
[348215118,1736395557032,150.0,8.239e-05,2]
[348215119,1736395557161,150.0,7.398e-05,2]
[348215120,1736395557194,150.0,7.556e-05,2]
[348215121,1736395557343,150.0,7.913e-05,2]
[348215122,1736395557394,150.0,7.093e-05,2]
[348215123,1736395571786,1162.05438716,0.0002001,120]
[348215124,1736395616586,150.0,7.889e-05,2]
[348215125,1736395616729,150.0,8.102e-05,2]
[348215126,1736395616788,150.0,7.167e-05,2]
[348215127,1736395616880,150.0,7.531e-05,2]
[348215149,1736395831909,-150.0,8.519e-05,2]
[348215150,1736395831918,-345.07637835,8.529e-05,2]
[348215151,1736395831930,-1507.34362165,8.529e-05,2]
[348215152,1736395831939,-150.0,8.532e-05,2]
[348215153,1736395831949,-373.8222,8.545e-05,2]
[348215154,1736395831958,-636.22,8.567e-05,2]
[348215155,1736395831968,-250.0,8.577e-05,2]
[348215156,1736395831977,-150.0,8.629e-05,2]
[348215157,1736395831987,-150.0,8.657e-05,2]
[348215158,1736395831996,-1000.0,8.668e-05,2]
[348215159,1736395832006,-150.0,8.731e-05,2]
[348215160,1736395832015,-150.0,8.812e-05,2]
[348215161,1736395832025,-150.0,8.837e-05,2]
[348215162,1736395832034,-166.66,8.901e-05,2]
[348215163,1736395832043,-77.26388435,8.937e-05,2]
[348215164,1736395832084,-72.73611565,8.937e-05,2]
[348215165,1736395832094,-177.94,9.029e-05,2]
[348215166,1736395832104,-210.06388435,9.095e-05,2]
[348215167,1736395832136,-228.25611565,9.095e-05,2]
[348215168,1736395832146,-150.0,9.139e-05,2]
[348215169,1736395832155,-167.68,9.213e-05,2]
[348215170,1736395832164,-90.8023691,9.236e-05,2]
[348215174,1736395832418,-59.1976309,9.236e-05,2]
[348215175,1736395832428,-939.74,9.242e-05,2]
[348215176,1736395832437,-150.0,9.262e-05,2]
[348215178,1736395832446,-50.96556972,9.307e-05,2]
[348215181,1736395832463,-1449.03443028,9.307e-05,2]
[348215183,1736395832472,-150.0,9.361e-05,2]
[348215185,1736395832481,-150.0,9.453e-05,2]
[348215186,1736395832490,-300.0,9.493e-05,2]
[348215188,1736395832500,-1500.0,9.494e-05,2]
[348215190,1736395832509,-150.0,9.543e-05,2]
[348215192,1736395832518,-627.3,9.544e-05,2]
[348215194,1736395832527,-150.0,9.574e-05,2]
[348215197,1736395832537,-4241.82834037,9.589e-05,2]
[348215202,1736395832581,-3892.62165963,9.589e-05,2]
[348215204,1736395832590,-636.22,9.638e-05,2]
[348215206,1736395832600,-150.0,9.664e-05,2]
[348215208,1736395832609,-1080.81,9.67e-05,2]
[348215210,1736395832618,-1150.70394909,9.67e-05,2]
[348215316,1736395837863,-465.401043,9.67e-05,2]
[348215317,1736395837919,-735.15365519,9.67e-05,2]
[348215318,1736395837977,-1274.92466572,9.67e-05,2]
[348215319,1736395838028,-361.37125032,9.67e-05,2]
[348215320,1736395838081,-2226.50543668,9.67e-05,2]
[348215321,1736395838091,-299.99,9.67e-05,2]
[348215322,1736395838101,-736.35,9.67e-05,2]
[348215323,1736395838112,-150.0,9.681e-05,2]
[348215324,1736395838123,-84.76956692,9.713e-05,2]
[348215325,1736395838150,-1992.94790656,9.713e-05,2]
[348215355,1736395839863,-1272.5779999,9.713e-05,2]
[348215356,1736395839877,-500.0,9.713e-05,2]
[348215357,1736395839936,-23.28452662,9.713e-05,2]
[348215358,1736395839947,-150.0,9.729e-05,2]
[348215359,1736395839958,-150.0,9.75e-05,2]
[348215360,1736395839970,-150.0,9.751e-05,2]
[348215361,1736395839981,-889.10551338,9.752e-05,2]
[348215362,1736395839994,-110.89448662,9.752e-05,2]
[348215363,1736395840005,-150.0,9.803e-05,2]
[348215364,1736395840016,-74.13551328,9.861e-05,2]
[348215365,1736395840037,-75.86448672,9.861e-05,2]
[348215366,1736395840048,-1850.85328769,9.898e-05,2]
[348215367,1736395840061,-3779.66261231,9.898e-05,2]
[348215368,1736395840073,-2228.61230769,9.898e-05,2]
[348215369,1736395840116,-673.28091224,9.898e-05,2]
[348215370,1736395840129,-262.520001,9.898e-05,2]
[348215371,1736395840160,-3232.19697907,9.898e-05,2]
[348215372,1736395840171,-311.523,9.898e-05,2]
[348215373,1736395840182,-640.215,9.898e-05,2]
[348215374,1736395840193,-3863.9061,9.898e-05,2]
[348215375,1736395840203,-2500.0,9.898e-05,2]
[348215376,1736395840215,-5167.4054,9.899e-05,2]
[348215377,1736395840226,-150.0,9.9e-05,2]
[348215378,1736395840239,-7691.25352093,9.971e-05,2]
[348215379,1736395840252,-854.04481061,9.971e-05,2]
[348215380,1736395840273,-2225.58417319,9.971e-05,2]
[348215490,1736395843106,-429.26652671,9.899e-05,2]
[348215491,1736395843118,-570.73347329,9.899e-05,2]
[348215492,1736395843127,-676.59848024,9.971e-05,2]
[348215493,1736395843146,-24341.18142535,9.971e-05,2]
[348215494,1736395843155,-24918.81857465,9.972e-05,2]
[348215495,1736395843166,-48370.80114915,9.972e-05,2]
[348215496,1736395843176,-35788.66241032,9.972e-05,2]
[348215497,1736395843186,-1941.94,9.973e-05,14]
[348215499,1736395843195,-3228.19455625,9.973e-05,2]
[348215501,1736395843204,-3228.19455625,9.973e-05,2]
[348215503,1736395843214,-35788.66241032,9.974e-05,2]
[348215505,1736395843223,-73289.6197238,9.975e-05,2]
[348215507,1736395843233,-200.0,9.976e-05,2]
[348215509,1736395843242,-35788.66241032,9.976e-05,2]
[348215511,1736395843252,-1781.40784887,9.978e-05,2]
[348215513,1736395843261,-1781.40784887,9.978e-05,2]
[348215515,1736395843270,-3228.19455625,9.979e-05,2]
[348215517,1736395843279,-668.82764753,9.979e-05,2]
[348215519,1736395843288,-668.82764753,9.98e-05,2]
[348215521,1736395843298,-3228.19455625,9.981e-05,2]
[348215523,1736395843307,-668.82764753,9.981e-05,2]
[348215525,1736395843316,-1781.40784887,9.982e-05,2]
[348215527,1736395843329,-73289.6197238,9.982e-05,2]
[348215529,1736395843339,-35788.66241032,9.983e-05,2]
[348215531,1736395843348,-200.0,9.983e-05,2]
[348215533,1736395843357,-150.0,9.985e-05,2]
[348215536,1736395843367,-73289.6197238,9.985e-05,2]
[348215538,1736395843375,-1781.40784887,9.985e-05,2]
[348215539,1736395843383,-668.82764753,9.986e-05,2]
[348215541,1736395843390,-3228.19455625,9.986e-05,2]
[348215543,1736395843397,-73289.6197238,9.989e-05,2]
[348215545,1736395843404,-29165.191572,9.99e-05,2]
[348215547,1736395843414,-6623.47083832,9.99e-05,2]
[348215549,1736395843422,-1781.40784887,9.991e-05,2]
[348215551,1736395843430,-22174.90131281,9.994e-05,2]
[348215552,1736395843444,-4836.0,9.994e-05,2]
[348215553,1736395843454,-1192.20706,9.994e-05,2]
[348215554,1736395843465,-334.4601754,9.994e-05,2]
[348215555,1736395843476,-418.29663323,9.994e-05,2]
[348215556,1736395843487,-365.7149734,9.994e-05,2]
[348215557,1736395843503,-831.54672658,9.994e-05,2]
[348215558,1736395843533,-1213.55115148,9.994e-05,2]
[348215559,1736395843544,-1273.949995,9.994e-05,2]
[348215560,1736395843555,-40648.9916959,9.994e-05,2]
[348215561,1736395843564,-3228.19455625,9.995e-05,2]
[348215562,1736395843576,-668.82764753,9.996e-05,2]
[348215563,1736395843585,-1781.40784887,9.996e-05,2]
[348215564,1736395843594,-668.82764753,9.997e-05,2]
[348215565,1736395843603,-210.33523824,9.998e-05,2]
[348215566,1736395843614,-436.45787776,9.998e-05,2]
[348215567,1736395843623,-155.152432,9.998e-05,2]
[348215568,1736395843632,-156.641603,9.998e-05,2]
[348215569,1736395843641,-156.833203,9.998e-05,2]
[348215570,1736395843651,-500.0,9.998e-05,2]
[348215571,1736395843659,-440.5829418,9.998e-05,2]
[348215572,1736395843675,-59.4170582,9.998e-05,2]
[348215573,1736395843684,-405.07,9.998e-05,2]
[348215574,1736395843693,-500.0,9.998e-05,2]
[348215575,1736395843702,-27.43131697,9.998e-05,2]
[348215576,1736395843713,-472.56868303,9.998e-05,2]
[348215577,1736395843723,-462.19338936,9.998e-05,2]
[348215578,1736395843735,-170.01307717,9.998e-05,2]
[348215580,1736395845854,-329.98692283,9.998e-05,2]
[348215581,1736395845863,-505.05389822,9.998e-05,2]
[348215582,1736395845873,-241.20862553,9.998e-05,2]
[348215583,1736395845885,-258.79137447,9.998e-05,2]
[348215584,1736395845895,-149.03132181,9.998e-05,2]
[348215585,1736395845908,-350.96867819,9.998e-05,2]
[348215586,1736395845917,-500.0,9.998e-05,2]
[348215587,1736395845927,-500.0,9.998e-05,2]
[348215588,1736395845937,-500.0,9.998e-05,2]
[348215589,1736395845946,-174.05183452,9.998e-05,2]
[348215590,1736395845956,-220.99802885,9.998e-05,2]
[348215591,1736395845968,-279.00197115,9.998e-05,2]
[348215592,1736395845978,-222.76909585,9.998e-05,2]
[348215593,1736395846019,-277.23090415,9.998e-05,2]
[348215594,1736395846029,-35.31158951,9.998e-05,2]
[348215595,1736395846041,-335.34502768,9.998e-05,2]
[348215596,1736395846053,-62.27535927,9.998e-05,2]
[348215597,1736395846063,-505.45465083,9.998e-05,2]
[348215598,1736395846076,-500.0,9.998e-05,2]
[348215599,1736395846086,-500.0,9.998e-05,2]
[348215600,1736395846096,-500.0,9.998e-05,2]
[348215601,1736395846105,-500.0,9.998e-05,2]
[348215602,1736395846115,-500.0,9.998e-05,2]
[348215603,1736395846125,-500.0,9.998e-05,2]
[348215604,1736395846135,-500.0,9.998e-05,2]
[348215605,1736395846144,-500.0,9.998e-05,2]
[348215606,1736395846154,-500.0,9.998e-05,2]
[348215607,1736395846163,-500.0,9.998e-05,2]
[348215608,1736395846172,-500.0,9.998e-05,2]
[348215609,1736395846181,-500.0,9.998e-05,2]
[348215610,1736395846190,-500.0,9.998e-05,2]
[348215611,1736395846199,-500.0,9.998e-05,2]
[348215612,1736395846209,-500.0,9.998e-05,2]
[348215613,1736395846218,-500.0,9.998e-05,2]
[348215614,1736395846227,-500.0,9.998e-05,2]
[348215615,1736395846236,-500.0,9.998e-05,2]
[348215616,1736395846247,-520.99,9.998e-05,2]
[348215617,1736395846256,-500.0,9.998e-05,2]
[348215618,1736395846265,-500.0,9.998e-05,2]
[348215619,1736395846275,-500.0,9.998e-05,2]
[348215620,1736395846284,-500.0,9.998e-05,2]
[348215621,1736395846293,-500.0,9.998e-05,2]
[348215622,1736395846302,-500.0,9.998e-05,2]
[348215623,1736395846311,-500.0,9.998e-05,2]
[348215624,1736395846321,-500.0,9.998e-05,2]
[348215625,1736395846330,-501.61986024,9.998e-05,2]
[348215626,1736395846339,-500.0,9.998e-05,2]
[348215627,1736395846348,-639.68,9.998e-05,2]
[348215628,1736395846357,-500.0,9.998e-05,2]
[348215629,1736395846366,-500.0,9.998e-05,2]
[348215630,1736395846375,-500.0,9.998e-05,2]
[348215631,1736395846384,-500.0,9.998e-05,2]
[348215632,1736395846393,-500.0,9.998e-05,2]
[348215633,1736395846402,-500.0,9.998e-05,2]
[348215634,1736395846411,-500.0,9.998e-05,2]
[348215635,1736395846420,-561.5240863,9.998e-05,2]
[348215636,1736395846429,-430.57281889,9.998e-05,2]
[348215637,1736395846439,-500.0,9.998e-05,2]
[348215638,1736395846448,-500.0,9.998e-05,2]
[348215639,1736395846457,-501.55759681,9.998e-05,2]
[348215640,1736395846466,-500.0,9.998e-05,2]
[348215641,1736395846476,-842.82,9.998e-05,2]
[348215642,1736395846485,-500.0,9.998e-05,2]
[348215643,1736395846494,-500.0,9.998e-05,2]
[348215644,1736395846503,-541.84,9.998e-05,2]
[348215645,1736395846513,-500.0,9.998e-05,2]
[348215646,1736395846522,-500.0,9.998e-05,2]
[348215647,1736395846531,-450.73836111,9.998e-05,2]
[348215648,1736395846540,-747.4,9.998e-05,2]
[348215649,1736395846549,-500.0,9.998e-05,2]
[348215650,1736395846558,-500.0,9.998e-05,2]
[348215651,1736395846567,-500.0,9.998e-05,2]
[348215652,1736395846578,-500.0,9.998e-05,2]
[348215653,1736395846587,-500.0,9.998e-05,2]
[348215654,1736395846596,-500.0,9.998e-05,2]
[348215655,1736395846606,-500.0,9.998e-05,2]
[348215656,1736395846616,-500.0,9.998e-05,2]
[348215657,1736395846627,-500.0,9.998e-05,2]
[348215658,1736395846636,-500.0,9.998e-05,2]
[348215659,1736395846646,-500.0,9.998e-05,2]
[348215660,1736395846655,-500.0,9.998e-05,2]
[348215661,1736395846664,-500.0,9.998e-05,2]
[348215662,1736395846673,-500.0,9.998e-05,2]
[348215663,1736395846682,-1188.3,9.998e-05,2]
[348215664,1736395846691,-500.0,9.998e-05,2]
[348215665,1736395846700,-500.0,9.998e-05,2]
[348215666,1736395846709,-500.0,9.998e-05,2]
[348215667,1736395846718,-500.0,9.998e-05,2]
[348215668,1736395846728,-500.0,9.998e-05,2]
[348215669,1736395846738,-905.68,9.998e-05,2]
[348215670,1736395846749,-500.0,9.998e-05,2]
[348215671,1736395846758,-500.0,9.998e-05,2]
[348215672,1736395846778,-500.0,9.998e-05,2]
[348215673,1736395846789,-500.0,9.998e-05,2]
[348215674,1736395846799,-500.0,9.998e-05,2]
[348215675,1736395846808,-500.0,9.998e-05,2]
[348215676,1736395846819,-500.0,9.998e-05,2]
[348215677,1736395846828,-541.3,9.998e-05,2]
[348215678,1736395846838,-500.0,9.998e-05,2]
[348215679,1736395846847,-1999.14,9.998e-05,2]
[348215680,1736395846857,-500.0,9.998e-05,2]
[348215681,1736395846866,-500.0,9.998e-05,2]
[348215682,1736395846876,-500.0,9.998e-05,2]
[348215683,1736395846885,-500.0,9.998e-05,2]
[348215684,1736395846894,-1571.35,9.998e-05,2]
[348215685,1736395846904,-500.0,9.998e-05,2]
[348215686,1736395846914,-500.0,9.998e-05,2]
[348215687,1736395846923,-833.7,9.998e-05,2]
[348215688,1736395846932,-559.77,9.998e-05,2]
[348215689,1736395846942,-670.84,9.998e-05,2]
[348215690,1736395846952,-500.0,9.998e-05,2]
[348215691,1736395846961,-839.77,9.998e-05,2]
[348215692,1736395846971,-1373.37,9.998e-05,2]
[348215693,1736395846980,-1076.44,9.998e-05,2]
[348215694,1736395846990,-500.0,9.998e-05,2]
[348215695,1736395847000,-500.0,9.998e-05,2]
[348215696,1736395847009,-500.0,9.998e-05,2]
[348215697,1736395847019,-500.0,9.998e-05,2]
[348215698,1736395847028,-1430.64,9.998e-05,2]
[348215699,1736395847038,-500.0,9.998e-05,2]
[348215700,1736395847047,-1043.94,9.998e-05,2]
[348215701,1736395847056,-500.0,9.998e-05,2]
[348215702,1736395847066,-500.0,9.998e-05,2]
[348215703,1736395847077,-1809.97,9.998e-05,2]
[348215704,1736395847087,-503.98,9.998e-05,2]
[348215705,1736395847097,-500.0,9.998e-05,2]
[348215706,1736395847107,-500.0,9.998e-05,2]
[348215707,1736395847116,-1386.48,9.998e-05,2]
[348215708,1736395847126,-808.49,9.998e-05,2]
[348215709,1736395847135,-500.0,9.998e-05,2]
[348215710,1736395847144,-500.0,9.998e-05,2]
[348215711,1736395847153,-500.0,9.998e-05,2]
[348215712,1736395847163,-780.03,9.998e-05,2]
[348215713,1736395847172,-500.0,9.998e-05,2]
[348215714,1736395847181,-500.0,9.998e-05,2]
[348215715,1736395847191,-500.0,9.998e-05,2]
[348215716,1736395847201,-500.0,9.998e-05,2]
[348215717,1736395847210,-1026.23,9.998e-05,2]
[348215718,1736395847219,-500.0,9.998e-05,2]
[348215719,1736395847228,-1009.04,9.998e-05,2]
[348215720,1736395847238,-630.15,9.998e-05,2]
[348215721,1736395847249,-500.0,9.998e-05,2]
[348215722,1736395847259,-520.66817986,9.998e-05,2]
[348215723,1736395847269,-500.0,9.998e-05,2]
[348215724,1736395847278,-1453.93,9.998e-05,2]
[348215725,1736395847287,-502.59194571,9.998e-05,2]
[348215726,1736395847296,-500.0,9.998e-05,2]
[348215727,1736395847305,-500.0,9.998e-05,2]
[348215728,1736395847315,-815.31,9.998e-05,2]
[348215729,1736395847325,-686.71,9.998e-05,2]
[348215730,1736395847334,-1683.8,9.998e-05,2]
[348215731,1736395847343,-511.61,9.998e-05,2]
[348215732,1736395847353,-500.0,9.999e-05,2]
[348215733,1736395847362,-500.0,9.999e-05,2]
[348215734,1736395847372,-500.0,9.999e-05,2]
[348215735,1736395847381,-571.42,9.999e-05,2]
[348215736,1736395847391,-500.0,9.999e-05,2]
[348215737,1736395847401,-500.0,9.999e-05,2]
[348215738,1736395847410,-500.0,9.999e-05,2]
[348215739,1736395847419,-500.0,9.999e-05,2]
[348215740,1736395847428,-948.16,9.999e-05,2]
[348215741,1736395847438,-798.98,9.999e-05,2]
[348215742,1736395847447,-782.2,9.999e-05,2]
[348215743,1736395847456,-2214.09,9.999e-05,2]
[348215744,1736395847466,-500.0,9.999e-05,2]
[348215745,1736395847475,-500.0,9.999e-05,2]
[348215746,1736395847484,-500.0,9.999e-05,2]
[348215747,1736395847494,-1080.08,9.999e-05,2]
[348215748,1736395847503,-500.0,9.999e-05,2]
[348215749,1736395847513,-1077.08,9.999e-05,2]
[348215750,1736395847522,-1255.08,9.999e-05,2]
[348215751,1736395847531,-621.78,9.999e-05,2]
[348215752,1736395847541,-475.91904485,9.999e-05,2]
[348215753,1736395847551,-500.0,9.999e-05,2]
[348215754,1736395847560,-1341.96,9.999e-05,2]
[348215755,1736395847569,-500.0,9.999e-05,2]
[348215756,1736395847579,-500.0,9.999e-05,2]
[348215757,1736395847588,-500.0,9.999e-05,2]
[348215758,1736395847598,-500.0,9.999e-05,2]
[348215759,1736395847607,-264.04325331,9.999e-05,2]
[348215760,1736395847617,-500.0,9.999e-05,2]
[348215761,1736395847838,-500.0,9.999e-05,2]
[348215762,1736395847849,-500.0,9.999e-05,2]
[348215763,1736395847859,-500.0,9.999e-05,2]
[348215764,1736395847869,-500.0,9.999e-05,2]
[348215765,1736395847878,-500.0,9.999e-05,2]
[348215766,1736395847888,-500.0,9.999e-05,2]
[348215767,1736395847897,-876.89,9.999e-05,2]
[348215768,1736395847907,-500.0,9.999e-05,2]
[348215769,1736395847916,-500.0,9.999e-05,2]
[348215770,1736395847925,-500.0,9.999e-05,2]
[348215771,1736395847935,-500.0,9.999e-05,2]
[348215772,1736395847944,-500.0,9.999e-05,2]
[348215773,1736395847954,-500.0,9.999e-05,2]
[348215774,1736395847963,-500.0,9.999e-05,2]
[348215775,1736395847972,-772.52,9.999e-05,2]
[348215776,1736395847982,-500.0,9.999e-05,2]
[348215777,1736395847991,-502.46906961,9.999e-05,2]
[348215778,1736395848001,-568.79,9.999e-05,2]
[348215779,1736395848010,-500.0,9.999e-05,2]
[348215780,1736395848020,-500.0,9.999e-05,2]
[348215781,1736395848030,-500.0,9.999e-05,2]
[348215782,1736395848039,-500.0,9.999e-05,2]
[348215783,1736395848048,-510.15508236,9.999e-05,2]
[348215784,1736395848058,-500.0,9.999e-05,2]
[348215785,1736395848068,-501.42606047,9.999e-05,2]
[348215786,1736395848079,-500.0,9.999e-05,2]
[348215787,1736395848088,-500.0,9.999e-05,2]
[348215788,1736395848098,-873.21,9.999e-05,2]
[348215789,1736395848108,-563.7235715,9.999e-05,2]
[348215790,1736395848117,-500.0,9.999e-05,2]
[348215791,1736395848127,-500.0,9.999e-05,2]
[348215792,1736395848137,-625.52,9.999e-05,2]
[348215793,1736395848146,-506.28796639,9.999e-05,2]
[348215794,1736395848156,-500.0,9.999e-05,2]
[348215795,1736395848165,-2589.29,9.999e-05,2]
[348215796,1736395848175,-161775.32414602,0.0001,2]
[348215797,1736395848184,-900.0,0.0001,3]
[348215798,1736395848193,-411.50007755,0.0001,2]
[348215799,1736395848202,-411.50007745,0.00010003,2]
[348215800,1736395848211,-150.0,0.00010012,2]
[348215801,1736395848221,-5000.0,0.00010034,2]
[348215802,1736395848230,-150.0,0.0001005,2]
[348215803,1736395848240,-150.0,0.00010076,2]
[348215804,1736395848250,-501.0,0.00010082,2]
[348215805,1736395848259,-411.50007745,0.00010107,2]
[348215806,1736395848270,-384.98780795,0.00010134,2]
[348215807,1736395848279,-636.35540938,0.00010134,2]
[348215808,1736395848289,-500.0,0.00010134,2]
[348215809,1736395848299,-492.4847969,0.00010134,2]
[348215810,1736395848308,-403.98990526,0.00010134,2]
[348215811,1736395848318,-509.31430515,0.00010134,2]
[348215812,1736395848328,-547.60402789,0.00010134,2]
[348215813,1736395848337,-500.0,0.00010134,2]
[348215814,1736395848347,-378.36511347,0.00010134,2]
[348215815,1736395848356,-505.45412196,0.00010134,2]
[348215816,1736395848366,-503.72361644,0.00010134,2]
[348215817,1736395848375,-504.25516102,0.00010134,2]
[348215818,1736395848385,-503.19334026,0.00010134,2]
[348215819,1736395848395,-500.0,0.00010134,2]
[348215820,1736395848404,-500.0,0.00010134,2]
[348215821,1736395848413,-502.8270354,0.00010134,2]
[348215822,1736395848423,-500.0,0.00010134,2]
[348215823,1736395848434,-504.717318,0.00010134,2]
[348215824,1736395848443,-502.30455764,0.00010134,2]
[348215825,1736395848453,-500.0,0.00010134,2]
[348215826,1736395848463,-502.63212327,0.00010134,2]
[348215827,1736395848473,-500.0,0.00010134,2]
[348215828,1736395848482,-500.0,0.00010134,2]
[348215829,1736395848492,-500.0,0.00010134,2]
[348215830,1736395848502,-500.0,0.00010134,2]
[348215831,1736395848511,-500.0,0.00010134,2]
[348215832,1736395848520,-500.0,0.00010134,2]
[348215833,1736395848530,-500.0,0.00010134,2]
[348215834,1736395848539,-500.0,0.00010134,2]
[348215835,1736395848549,-500.0,0.00010134,2]
[348215836,1736395848558,-500.0,0.00010134,2]
[348215837,1736395848567,-556.87,0.00010134,2]
[348215838,1736395848577,-515.36,0.00010134,2]
[348215839,1736395848585,-500.0,0.00010134,2]
[348215840,1736395848595,-500.0,0.00010134,2]
[348215841,1736395848604,-500.0,0.00010134,2]
[348215842,1736395848613,-500.0,0.00010134,2]
[348215843,1736395848623,-500.0,0.00010134,2]
[348215844,1736395848633,-500.0,0.00010134,2]
[348215845,1736395848642,-500.0,0.00010134,2]
[348215846,1736395848651,-500.0,0.00010134,2]
[348215847,1736395848661,-500.0,0.00010134,2]
[348215848,1736395848670,-500.0,0.00010134,2]
[348215849,1736395848679,-602.69,0.00010134,2]
[348215850,1736395848688,-500.0,0.00010134,2]
[348215851,1736395848698,-500.0,0.00010134,2]
[348215852,1736395848708,-500.0,0.00010134,2]
[348215853,1736395848717,-500.0,0.00010134,2]
[348215854,1736395848727,-500.0,0.00010134,2]
[348215855,1736395848738,-500.0,0.00010134,2]
[348215856,1736395848748,-500.0,0.00010134,2]
[348215857,1736395848757,-500.0,0.00010134,2]
[348215858,1736395848767,-500.0,0.00010134,2]
[348215859,1736395848777,-500.0,0.00010134,2]
[348215860,1736395848788,-500.0,0.00010134,2]
[348215861,1736395848798,-500.0,0.00010134,2]
[348215862,1736395848807,-500.0,0.00010134,2]
[348215863,1736395848818,-500.0,0.00010134,2]
[348215864,1736395848828,-500.0,0.00010134,2]
[348215865,1736395848838,-500.0,0.00010134,2]
[348215866,1736395848847,-500.0,0.00010134,2]
[348215867,1736395848857,-500.0,0.00010134,2]
[348215868,1736395848867,-500.0,0.00010134,2]
[348215869,1736395848877,-500.0,0.00010134,2]
[348215870,1736395848886,-500.0,0.00010134,2]
[348215871,1736395848896,-506.51274467,0.00010134,2]
[348215872,1736395848905,-500.0,0.00010134,2]
[348215873,1736395848915,-505.53545186,0.00010134,2]
[348215874,1736395848924,-500.0,0.00010134,2]
[348215875,1736395848934,-501.93203772,0.00010134,2]
[348215876,1736395848945,-500.0,0.00010134,2]
[348215877,1736395848955,-500.0,0.00010134,2]
[348215878,1736395848965,-500.0,0.00010134,2]
[348215879,1736395848975,-500.0,0.00010134,2]
[348215880,1736395848985,-503.67535105,0.00010134,2]